bitfinex-derivatives/quotes_SOLF0:USTF0_20241217
["timestamp","ask_amount","ask_price","bid_price","bid_amount"]
[1734442829902,6.70765779,224.34,224.25,5.31591032]
[1734442830096,10.50179819,224.36,224.23,12.50189819]
[1734442830299,2.2293,224.33,224.28,2.2296]
[1734442830596,2.38,224.36,224.24,10.50179819]
[1734442831398,2.2293,224.32,224.27,2.2298]
[1734442831704,2.2293,224.32,224.24,10.50179819]
[1734442831705,2.38,224.36,224.24,10.50179819]
[1734442832095,2.38,224.37,224.27,2.2298]
[1734442832298,2.38,224.37,224.24,10.50179819]
[1734442833901,2.2293,224.32,224.24,10.50179819]
[1734442834497,2.38,224.37,224.24,10.50179819]
[1734442834699,2.36,224.41,224.3,10.50179819]
[1734442834896,10.50179819,224.45,224.31,4.1643]
[1734442834897,2.36,224.42,224.31,4.1643]
[1734442835400,10.50179819,224.45,224.33,10.50179819]
[1734442835602,1.675,224.46,224.36,10.50179819]
[1734442835800,1.675,224.46,224.36,12.86179819]
[1734442836000,2.2283,224.42,224.38,2.2287]
[1734442836995,2.2282,224.43,224.38,2.2287]
[1734442837398,2.36,224.49,224.39,2.2286]
[1734442837905,2.2281,224.44,224.39,2.2286]
[1734442838902,2.2283,224.42,224.37,2.2288]
[1734442839104,7.7385223,224.49,224.36,2.36]
[1734442839297,2.36,224.48,224.36,2.36]
[1734442840297,10.50179819,224.41,224.31,8.6931]
[1734442840704,2.2293,224.32,224.31,4.2956]
[1734442840900,10.50179819,224.38,224.25,31.22090322]
[1734442840901,10.50179819,224.38,224.28,2.36]
[1734442841097,12.86179819,224.38,224.28,2.36]
[1734442841296,2.36,224.38,224.28,2.36]
[1734442841501,10.50179819,224.35,224.25,4.1725]
[1734442842904,2.2297,224.28,224.25,4.1725]
[1734442843298,10.50179819,224.35,224.25,6.4024]
[1734442843898,2.2296,224.3,224.25,6.4024]
[1734442844096,2.36,224.38,224.29,2.2295]
[1734442845509,2.2292,224.34,224.29,2.2295]
[1734442845703,2.36,224.38,224.29,2.2295]
[1734442846409,10.50179819,224.36,224.25,4.1725]
[1734442847809,2.2294,224.32,224.25,4.1725]
[1734442848010,2.2294,224.32,224.26,2.36]
[1734442848307,2.2294,224.32,224.28,2.2297]
[1734442849608,2.36,224.38,224.25,4.1725]
[1734442849609,10.50179819,224.36,224.25,4.1725]
[1734442850213,2.2299,224.26,224.25,4.1725]
[1734442850408,12.86179819,224.33,224.21,2.36]
[1734442850717,12.86179819,224.33,224.19,2.36]
[1734442850910,12.86179819,224.33,224.19,4.5905]
[1734442851106,10.50179819,224.3,224.19,4.5905]
[1734442851312,10.50179819,224.3,224.19,2.2305]
[1734442852004,10.50179819,224.3,224.18,12.86179819]
[1734442852005,2.2303,224.22,224.18,12.73249819]
[1734442852207,12.86179819,224.27,224.15,28.99090322]
[1734442852412,2.36,224.26,224.15,10.50179819]
[1734442852912,10.50179819,224.3,224.18,10.50179819]
[1734442853116,5.29257812,224.31,224.18,10.50179819]
[1734442853117,2.36,224.29,224.18,10.50179819]
[1734442853312,15.79437631,224.31,224.19,2.2306]
[1734442853507,10.50179819,224.27,224.15,18.48910503]
[1734442853713,2.36,224.26,224.15,12.55539819]
[1734442854014,2.2299,224.26,224.16,6.32394511]
[1734442854209,2.36,224.28,224.18,10.50179819]
[1734442854607,2.36,224.28,224.18,12.86179819]
[1734442854805,2.36,224.28,224.16,20.47540503]
[1734442854806,2.36,224.29,224.16,18.48910503]
[1734442855020,2.36,224.29,224.16,10.50179819]
[1734442855515,2.36,224.29,224.17,4.33789913]
[1734442855717,2.36,224.29,224.19,2.2305]
[1734442856614,2.2302,224.23,224.19,2.2305]
[1734442856815,2.36,224.29,224.19,2.2305]
[1734442857015,2.36,224.29,224.18,2.2307]
[1734442857214,2.36,224.29,224.14,34.42911424]
[1734442857413,2.36,224.29,224.15,4.34228429]
[1734442857616,2.36,224.29,224.14,34.42911424]
[1734442857913,2.36,224.29,224.15,22.8313638]
[1734442858115,10.50179819,224.27,224.14,18.48910503]
[1734442858317,10.50179819,224.27,224.13,18.48910503]
[1734442858513,2.2302,224.24,224.14,6.57543977]
[1734442858712,10.50179819,224.27,224.13,18.48910503]
[1734442858713,2.36,224.23,224.13,18.48910503]
[1734442858918,2.36,224.23,224.14,4.34440917]
[1734442859113,2.2305,224.2,224.15,2.2309]
[1734442859318,2.36,224.23,224.15,2.2309]
[1734442859719,2.2305,224.2,224.16,2.2309]
[1734442860318,2.2305,224.2,224.17,2.2308]
[1734442861214,12.86179819,224.24,224.13,18.48910503]
[1734442861418,12.86179819,224.24,224.12,28.99090322]
[1734442861620,12.86179819,224.24,224.13,9.76211847]
[1734442861915,2.2307,224.18,224.14,2.231]
[1734442862117,12.86179819,224.24,224.13,5.41629189]
[1734442862314,12.86179819,224.24,224.14,4.34468488]
[1734442862610,2.2304,224.21,224.17,2.2307]
[1734442862817,12.86179819,224.24,224.13,23.90539692]
[1734442863019,12.86179819,224.24,224.14,4.34516028]
[1734442863218,2.2306,224.19,224.15,2.2309]
[1734442863412,12.86179819,224.24,224.15,2.2309]
[1734442864421,2.2306,224.19,224.15,2.2309]
[1734442864818,2.2307,224.18,224.15,2.2309]
[1734442865020,2.36,224.24,224.18,2.2307]
[1734442865213,1.969,224.29,224.18,2.2307]
[1734442865214,10.50179819,224.27,224.18,2.2307]
[1734442865418,10.50179819,224.27,224.13,5.41629189]
[1734442865723,2.2302,224.23,224.14,4.34261791]
[1734442865923,2.2302,224.23,224.13,5.41629189]
[1734442866122,2.2302,224.23,224.19,2.2305]
[1734442867125,2.2305,224.2,224.13,5.41629189]
[1734442867624,2.2305,224.2,224.16,2.2308]
[1734442867828,2.2305,224.2,224.13,5.41629189]
[1734442868722,10.50179819,224.24,224.13,5.41629189]
[1734442868925,2.36,224.23,224.13,5.41629189]
[1734442869125,2.2306,224.19,224.15,2.2309]
[1734442869319,10.50179819,224.27,224.13,15.91809008]
[1734442869625,2.2303,224.22,224.18,2.2306]
[1734442869826,2.36,224.26,224.13,15.91809008]
[1734442870126,2.2307,224.18,224.15,2.2309]
[1734442871722,2.36,224.2,224.13,5.41629189]
[1734442871924,2.231,224.15,224.1,4.2315]
[1734442872125,2.36,224.2,224.1,4.2315]
[1734442872524,2.231,224.15,224.11,2.2313]
[1734442872925,10.50179819,224.18,224.11,2.2313]
[1734442873228,2.2311,224.14,224.11,2.2313]
[1734442873527,10.50179819,224.18,224.12,2.2312]
[1734442874120,10.50179819,224.18,224.09,2.2316]
[1734442874323,10.50179819,224.18,224.06,18.48910503]
[1734442874324,3.841,224.19,224.0,18.48910503]
[1734442874519,2.2316,224.1,224.04,2.232]
[1734442874720,10.50179819,224.1,224.01,20.55310503]
[1734442874921,10.50179819,224.1,224.01,2.064]
[1734442875118,2.2318,224.07,224.03,2.2321]
[1734442875321,2.36,224.09,224.01,2.064]
[1734442876123,10.50179819,224.13,224.01,2.064]
[1734442876527,2.2317,224.09,224.04,2.232]
[1734442876824,3.841,224.19,224.06,10.50179819]
[1734442876825,2.36,224.16,224.06,10.50179819]
[1734442877019,2.36,224.16,224.07,1.9756]
[1734442877832,2.36,224.16,224.1,2.2314]
[1734442878027,10.50179819,224.2,224.07,1.9756]
[1734442878332,2.36,224.18,224.07,1.9756]
[1734442879433,2.36,224.19,224.09,10.50179819]
[1734442879922,2.36,224.19,224.1,2.0792]
[1734442880321,2.2309,224.16,224.12,2.2312]
[1734442880525,2.2309,224.16,224.1,2.0792]
[1734442881822,2.36,224.19,224.1,2.0792]
[1734442882023,2.2308,224.18,224.13,2.2311]
[1734442882224,10.50179819,224.2,224.13,2.2311]
[1734442883426,2.2308,224.17,224.13,2.2311]
[1734442885729,10.50179819,224.23,224.1,2.0792]
[1734442885931,10.50179819,224.26,224.15,10.50179819]
[1734442886131,12.86179819,224.29,224.16,4.35015403]
[1734442886335,10.50179819,224.29,224.17,6.71081523]
[1734442886535,10.50179819,224.29,224.17,2.36]
[1734442887135,2.2301,224.24,224.17,2.36]
[1734442887332,10.50179819,224.29,224.17,2.36]
[1734442887536,12.86179819,224.29,224.17,2.36]
[1734442887736,2.2299,224.26,224.18,2.2307]
[1734442887936,12.86179819,224.29,224.18,2.2307]
[1734442888434,2.2303,224.22,224.18,2.2307]
[1734442889440,2.2302,224.23,224.19,2.2305]
[1734442889736,12.86179819,224.29,224.17,2.36]
[1734442889937,10.50179819,224.26,224.17,2.36]
[1734442890237,2.2307,224.19,224.17,2.36]
[1734442890431,10.50179819,224.23,224.14,18.48910503]
[1734442890636,10.50179819,224.23,224.11,73.92862442]
[1734442890637,2.231,224.15,224.11,2.2313]
[1734442891436,10.50179819,224.2,224.1,4.3106]
[1734442891636,10.50179819,224.2,224.1,2.0792]
[1734442891836,10.50179819,224.2,224.11,4.35518196]
[1734442892037,2.2309,224.17,224.13,2.2311]
[1734442892335,10.50179819,224.2,224.1,18.48910503]
[1734442892540,2.2313,224.12,224.08,20.58520503]
[1734442892733,2.2313,224.12,224.09,4.35577997]
[1734442892934,2.2313,224.12,224.08,20.58520503]
[1734442893133,2.2312,224.14,224.09,6.58738074]
[1734442893335,2.2312,224.14,224.1,4.35576514]
[1734442893531,10.50179819,224.2,224.09,2.2316]
[1734442893931,2.2312,224.13,224.08,2.0961]
[1734442894132,2.36,224.18,224.09,4.35579802]
[1734442894342,2.36,224.18,224.08,2.0961]
[1734442894842,2.36,224.18,224.08,4.3277]
[1734442895042,2.36,224.18,224.08,2.0961]
[1734442895242,2.36,224.18,224.09,2.2315]
[1734442895543,2.36,224.18,224.08,2.0961]
[1734442895738,2.36,224.18,224.12,2.2312]
[1734442895946,2.36,224.22,224.12,2.2312]
[1734442896440,2.36,224.22,224.13,2.2311]
[1734442896942,2.36,224.22,224.1,20.84910503]
[1734442896943,2.2309,224.16,224.1,20.84910503]
[1734442897145,2.2309,224.16,224.11,4.3555285]
[1734442897339,2.2308,224.18,224.12,4.35572846]
[1734442897542,2.2308,224.18,224.11,18.48910503]
[1734442897737,2.2308,224.18,224.12,4.35572446]
[1734442897937,2.2308,224.17,224.13,2.2311]
[1734442898243,10.50179819,224.2,224.1,20.84910503]
[1734442898444,12.86179819,224.23,224.11,6.58746708]
[1734442898644,2.2309,224.16,224.1,20.84910503]
[1734442898844,2.2309,224.16,224.11,4.35613638]
[1734442899044,2.2309,224.16,224.12,2.2312]
[1734442899244,10.50179819,224.23,224.11,18.48910503]
[1734442899548,2.2308,224.17,224.13,2.2311]
[1734442900041,12.86179819,224.23,224.12,18.48910503]
[1734442900242,2.36,224.23,224.13,40.2709263]
[1734442900443,2.36,224.25,224.14,40.27179966]
[1734442900640,2.36,224.25,224.15,4.35639524]
[1734442900843,2.2306,224.19,224.15,2.2309]
[1734442901149,10.50179819,224.23,224.11,67.79338513]
[1734442901350,2.2309,224.16,224.12,6.5886041]
[1734442901549,2.2309,224.16,224.12,2.2312]
[1734442902250,2.2309,224.16,224.12,8.96038]
[1734442903346,2.2309,224.16,224.13,4.35835147]
[1734442903645,2.2309,224.16,224.12,8.96038]
[1734442903851,2.2309,224.16,224.13,4.35869318]
[1734442904042,2.0143,224.27,224.14,6.72918]
[1734442904252,6.72918,224.25,224.19,6.72918]
[1734442904452,6.72918,224.23,224.16,2.36]
[1734442904649,2.2304,224.21,224.18,2.2306]
[1734442904952,2.2304,224.21,224.18,8.95978]
[1734442905154,3.6845,224.39,224.18,6.72918]
[1734442905452,2.2303,224.22,224.19,6.58832178]
[1734442905653,2.2303,224.22,224.19,2.2305]
[1734442906549,2.2303,224.22,224.2,6.72918]
[1734442906855,6.72918,224.26,224.2,8.95958]
[1734442907757,2.2302,224.23,224.2,8.95958]
[1734442907956,2.2302,224.23,224.2,2.2304]
[1734442908559,4.4581,224.35,224.22,6.72918]
[1734442908753,6.72918,224.28,224.22,8.95938]
[1734442909159,2.36,224.32,224.24,6.72918]
[1734442909363,2.2298,224.27,224.24,8.95928]
[1734442909755,6.72918,224.31,224.24,8.95928]
[1734442912060,10.50338919,224.34,224.24,2.2301]
[1734442912361,2.2298,224.27,224.24,2.2301]
[1734442913465,2.2296,224.29,224.25,2.2299]
[1734442913660,10.50338919,224.34,224.23,10.50338919]
[1734442914060,2.2294,224.31,224.27,2.2297]
[1734442914266,2.2294,224.31,224.26,2.36]
[1734442914564,2.2295,224.3,224.27,2.2297]
[1734442915156,10.50338919,224.34,224.27,2.2297]
[1734442915358,2.2293,224.32,224.27,2.2297]
[1734442916165,10.50338919,224.4,224.32,2.2293]
[1734442916365,10.50338919,224.4,224.29,10.50338919]
[1734442916567,10.50338919,224.4,224.3,2.36]
[1734442916763,2.2289,224.36,224.32,2.2293]
[1734442916966,10.50338919,224.43,224.3,12.86338919]
[1734442917163,10.50338919,224.43,224.31,42.35833787]
[1734442917365,2.2285,224.4,224.36,2.2288]
[1734442917567,10.50338919,224.43,224.36,2.2288]
[1734442917964,2.2285,224.41,224.36,2.2288]
[1734442918762,2.2285,224.4,224.36,2.2288]
[1734442919259,10.50338919,224.43,224.36,2.2288]
[1734442919466,2.2285,224.41,224.36,2.2288]
[1734442920266,2.2283,224.42,224.38,2.2286]
[1734442920973,5.33731523,224.5,224.4,10.50338919]
[1734442921168,15.84070442,224.5,224.4,2.36]
[1734442921671,10.50338919,224.5,224.4,2.36]
[1734442922066,2.2282,224.43,224.4,2.36]
[1734442922865,10.50338919,224.5,224.4,2.36]
[1734442923965,2.2278,224.47,224.43,2.2282]
[1734442924162,2.36,224.52,224.4,12.86338919]
[1734442924576,2.2278,224.48,224.43,2.2282]
[1734442924768,2.36,224.52,224.43,2.2282]
[1734442925070,10.50338919,224.48,224.36,4.354]
[1734442925574,10.50338919,224.45,224.36,4.354]
[1734442926170,10.50338919,224.45,224.35,2.099]
[1734442926373,10.50338919,224.42,224.31,2.1507]
[1734442926675,12.86338919,224.42,224.31,2.1507]
[1734442926875,2.229,224.36,224.31,2.1507]
[1734442927966,2.229,224.36,224.31,12.65408919]
[1734442928175,2.36,224.42,224.31,12.65408919]
[1734442928471,2.2288,224.37,224.33,2.2292]
[1734442928872,2.2286,224.39,224.34,2.229]
[1734442929066,3.86,224.46,224.34,10.50338919]
[1734442929273,2.36,224.47,224.34,10.50338919]
[1734442929480,2.2284,224.41,224.34,10.50338919]
[1734442929878,2.2283,224.43,224.38,2.2286]
[1734442930077,2.36,224.47,224.38,2.2286]
[1734442930676,10.50338919,224.51,224.41,2.2283]
[1734442931377,2.36,224.52,224.4,10.50338919]
[1734442931575,15.84450802,224.54,224.4,10.50338919]
[1734442931769,2.2278,224.48,224.44,2.2281]
[1734442934182,10.50338919,224.54,224.43,2.36]
[1734442934374,2.36,224.56,224.46,2.2278]
[1734442934580,2.36,224.56,224.43,12.86338919]
[1734442934773,2.2274,224.52,224.47,2.2277]
[1734442935381,2.2275,224.5,224.43,12.86338919]
[1734442935584,2.36,224.56,224.45,2.228]
[1734442935979,2.36,224.56,224.43,12.86338919]
[1734442936175,10.50338919,224.57,224.46,10.50338919]
[1734442936380,10.50338919,224.6,224.47,2.155]
[1734442936584,2.2276,224.49,224.47,2.155]
[1734442936782,2.36,224.56,224.47,2.155]
[1734442937791,2.2271,224.54,224.47,2.155]
[1734442937989,2.36,224.56,224.47,2.155]
[1734442938384,2.2275,224.5,224.47,2.155]
[1734442939092,2.2274,224.51,224.47,4.3827]
[1734442939286,2.36,224.56,224.47,2.155]
[1734442940390,2.2273,224.53,224.49,12.73088919]
[1734442940795,2.227,224.55,224.51,2.2273]
[1734442941291,5.45791145,224.61,224.51,2.2273]
[1734442941888,12.86338919,224.63,224.51,2.2273]
[1734442942093,2.2271,224.55,224.51,2.2273]
[1734442943187,12.86338919,224.63,224.53,2.2271]
[1734442943188,2.2266,224.6,224.53,2.2271]
[1734442943389,12.86338919,224.63,224.53,2.2271]
[1734442943586,12.86338919,224.63,224.52,10.50338919]
[1734442943788,2.2264,224.62,224.55,2.227]
[1734442943990,2.36,224.65,224.55,2.227]
[1734442944490,2.36,224.65,224.52,10.50338919]
[1734442944491,7.66790431,224.65,224.52,4.5872]
[1734442944990,2.2269,224.56,224.52,4.5872]
[1734442945193,2.2269,224.56,224.52,2.36]
[1734442945495,2.2269,224.56,224.53,2.2272]
[1734442945890,2.2269,224.56,224.52,4.5873]
[1734442946196,5.30790431,224.65,224.48,4.1735]
[1734442946197,2.36,224.59,224.48,12.50478919]
[1734442946393,2.36,224.59,224.47,4.515]
[1734442946693,2.2275,224.51,224.47,4.515]
[1734442946895,2.36,224.59,224.47,4.515]
[1734442947493,2.2276,224.5,224.47,4.515]
[1734442947692,10.50338919,224.57,224.41,2.0137]
[1734442947892,10.50338919,224.54,224.41,2.0137]
[1734442948193,2.228,224.46,224.41,4.242]
[1734442948397,2.36,224.53,224.41,4.242]
[1734442948598,2.2275,224.5,224.41,4.242]
[1734442948790,2.36,224.53,224.41,4.242]
[1734442948995,2.36,224.53,224.42,2.36]
[1734442949398,2.228,224.46,224.42,2.36]
[1734442949899,2.228,224.45,224.42,2.36]
[1734442950496,2.2279,224.46,224.42,4.5883]
[1734442951392,2.0211,224.58,224.4,5.39746413]
[1734442951393,12.86338919,224.48,224.4,5.39746413]
[1734442951593,10.50338919,224.45,224.32,2.36]
[1734442951798,2.36,224.44,224.32,2.36]
[1734442952190,2.36,224.44,224.33,10.50338919]
[1734442952390,2.36,224.44,224.32,7.7970491]
[1734442952391,2.2283,224.42,224.37,2.2287]
[1734442952591,2.36,224.48,224.37,2.2287]
[1734442952791,2.36,224.48,224.37,2.36]
[1734442953002,2.36,224.48,224.39,12.73198919]
[1734442953003,2.2281,224.44,224.39,12.73198919]
[1734442953399,2.36,224.48,224.39,12.73198919]
[1734442953699,10.50338919,224.51,224.4,2.2284]
[1734442954604,10.50338919,224.51,224.39,10.50338919]
[1734442955300,10.50338919,224.51,224.43,6.14994267]
[1734442955502,2.2281,224.44,224.42,6.14994267]
[1734442955799,2.2281,224.44,224.43,4.97701965]
[1734442957097,4.3743,224.52,224.43,11.12696232]
[1734442957300,4.3743,224.52,224.41,6.14994267]
[1734442957497,4.3743,224.52,224.42,4.97751189]
[1734442957698,4.3743,224.52,224.41,6.14994267]
[1734442957699,2.2282,224.43,224.41,6.14994267]
[1734442957901,2.2282,224.43,224.42,4.97766619]
[1734442959103,2.2282,224.43,224.4,6.14994267]
[1734442959302,2.2282,224.43,224.41,4.9776606]
[1734442959601,10.50338919,224.45,224.37,6.14994267]
[1734442959904,2.36,224.44,224.34,6.14994267]
[1734442960095,2.36,224.44,224.35,4.97841598]
[1734442960295,2.229,224.35,224.34,6.14994267]
[1734442960601,12.86338919,224.39,224.3,8.24784267]
[1734442960805,12.86338919,224.39,224.29,18.4599913]
[1734442960806,2.2295,224.3,224.29,6.14994267]
[1734442961002,2.2295,224.3,224.29,11.12744852]
[1734442961202,2.36,224.38,224.29,4.97750585]
[1734442961404,2.2294,224.31,224.28,6.14994267]
[1734442961603,2.2294,224.31,224.29,4.97497576]
[1734442961799,2.2294,224.31,224.27,6.14994267]
[1734442962004,2.2295,224.3,224.28,4.97504912]
[1734442962205,2.2295,224.3,224.27,6.14994267]
[1734442962401,2.2295,224.3,224.28,4.9729753]
[1734442962599,2.2295,224.3,224.27,6.14994267]
[1734442962796,2.2294,224.32,224.28,4.97289332]
[1734442963001,2.2294,224.32,224.27,6.14994267]
[1734442963298,2.36,224.38,224.25,16.65333186]
[1734442963495,2.2297,224.28,224.25,10.50338919]
[1734442964597,2.2297,224.28,224.24,4.4579]
[1734442965600,10.50338919,224.36,224.24,4.4579]
[1734442965798,2.2298,224.27,224.24,4.4579]
[1734442967401,2.2298,224.27,224.24,6.688]
[1734442968008,2.2296,224.29,224.25,2.2299]
[1734442970308,10.50338919,224.42,224.26,10.50338919]
[1734442970505,10.50338919,224.42,224.24,4.4579]
[1734442970506,10.50338919,224.42,224.29,10.50338919]
[1734442970704,4.3601,224.43,224.33,2.2291]
[1734442970905,2.36,224.43,224.32,12.86338919]
[1734442971209,2.36,224.43,224.33,2.0282]
[1734442972411,2.2286,224.39,224.35,2.2289]
[1734442973413,2.36,224.43,224.33,2.0282]
[1734442973612,2.2284,224.41,224.36,2.2288]
[1734442973807,10.50338919,224.46,224.36,2.2288]
[1734442974812,2.2285,224.4,224.35,2.2289]
[1734442975110,10.50338919,224.46,224.35,2.2289]
[1734442975111,0.50338919,224.46,224.35,2.2289]
[1734442975314,2.2286,224.4,224.35,2.2289]
[1734442975506,0.50338919,224.46,224.35,10.50338919]
[1734442975709,0.50338919,224.46,224.37,2.2287]
[1734442975907,0.50338919,224.46,224.37,4.5887]
[1734442975908,2.2284,224.41,224.37,4.5887]
[1734442978215,12.86338919,224.49,224.4,2.2284]
[1734442978615,2.228,224.45,224.4,2.2284]
[1734442979606,10.50338919,224.49,224.38,10.50338919]
[1734442979808,2.2285,224.4,224.37,2.36]
[1734442980215,10.50338919,224.46,224.37,2.36]
[1734442980413,2.2285,224.4,224.37,2.36]
[1734442981016,2.2286,224.39,224.37,2.36]
[1734442981411,10.50338919,224.44,224.33,4.3882]
[1734442981715,10.50338919,224.41,224.33,2.0282]
[1734442981917,10.50338919,224.38,224.31,2.1623]
[1734442982211,10.50338919,224.38,224.26,18.4599913]
[1734442982212,10.50338919,224.38,224.26,6.14994267]
[1734442982412,4.308,224.4,224.27,11.12340629]
[1734442982612,4.308,224.4,224.29,16.65333186]
[1734442982613,2.2289,224.36,224.29,16.65333186]
[1734442982913,2.2289,224.36,224.3,11.12340629]
[1734442983117,2.2289,224.36,224.31,7.20276362]
[1734442983306,2.2289,224.36,224.3,6.14994267]
[1734442983307,10.50338919,224.41,224.3,6.14994267]
[1734442983504,10.50338919,224.41,224.33,2.2291]
[1734442983708,2.36,224.45,224.3,6.14994267]
[1734442983908,10.50338919,224.44,224.31,11.12400612]
[1734442984106,2.2289,224.36,224.32,7.20336345]
[1734442984313,2.2289,224.36,224.33,2.36]
[1734442984513,2.2295,224.3,224.24,6.14994267]
[1734442984712,10.50338919,224.34,224.25,11.12618815]
[1734442984909,2.36,224.36,224.26,4.97624548]
[1734442985109,2.36,224.36,224.27,4.97613586]
[1734442985312,10.50338919,224.36,224.25,6.14994267]
[1734442985509,10.50338919,224.36,224.26,4.97712999]
[1734442985715,2.2292,224.33,224.24,8.50994267]
[1734442985916,10.50338919,224.36,224.25,4.97716585]
[1734442986217,10.50338919,224.36,224.24,8.50994267]
[1734442986410,2.2297,224.29,224.25,4.97767806]
[1734442986614,2.2297,224.29,224.24,8.50994267]
[1734442986814,2.2297,224.28,224.25,4.97766994]
[1734442987111,2.2297,224.28,224.24,8.50994267]
[1734442987316,2.2297,224.28,224.25,4.97731179]
[1734442987514,2.2297,224.28,224.24,8.50994267]
[1734442987710,2.2297,224.28,224.25,4.97689677]
[1734442987912,2.2297,224.28,224.26,4.97687744]
[1734442988215,2.229,224.35,224.27,4.97668085]
[1734442988407,12.86338919,224.39,224.28,11.12662352]
[1734442988607,12.86338919,224.39,224.29,4.97668085]
[1734442988807,2.2294,224.31,224.28,6.14994267]
[1734442989007,2.2294,224.31,224.29,4.97655716]
[1734442989208,2.2294,224.31,224.3,4.97655716]
[1734442990118,2.2294,224.31,224.3,4.97807823]
[1734442990414,2.2293,224.33,224.28,6.14994267]
[1734442990615,12.86338919,224.39,224.29,4.9794774]
[1734442990821,12.86338919,224.39,224.28,6.14994267]
[1734442991021,12.86338919,224.39,224.29,4.97950874]
[1734442991218,10.50338919,224.42,224.3,4.9807803]
[1734442991417,12.86338919,224.42,224.31,4.98068126]
[1734442991620,12.86338919,224.42,224.32,4.9806171]
[1734442991818,12.86338919,224.42,224.31,6.14994267]
[1734442992020,12.86338919,224.42,224.32,4.98041693]
[1734442992215,10.50338919,224.42,224.33,4.98089707]
[1734442992416,10.50338919,224.42,224.32,6.14994267]
[1734442992716,10.50338919,224.42,224.31,18.4599913]
[1734442992717,10.50338919,224.42,224.31,6.14994267]
[1734442992922,2.2292,224.33,224.32,4.98260881]
[1734442993125,10.50338919,224.36,224.28,2.36]
[1734442993427,2.2291,224.34,224.28,2.36]
[1734442993617,10.50338919,224.36,224.28,2.36]
[1734442994023,12.86338919,224.39,224.29,4.98397595]
[1734442994323,10.50338919,224.39,224.3,11.13372929]
[1734442994620,2.2288,224.37,224.31,11.13372929]
[1734442994814,10.50338919,224.39,224.32,4.98378662]
[1734442995020,10.50338919,224.39,224.31,6.14994267]
[1734442995322,10.50338919,224.39,224.32,4.98501331]
[1734442995522,10.50338919,224.39,224.31,6.14994267]
[1734442995819,10.50338919,224.39,224.32,4.98517259]
[1734442996024,10.50338919,224.39,224.31,6.14994267]
[1734442996217,2.2291,224.34,224.32,4.98515448]
[1734442996420,2.2291,224.34,224.31,6.14994267]
[1734442996622,2.2291,224.34,224.32,4.98521457]
[1734442996821,2.2291,224.34,224.31,6.14994267]
[1734442997019,2.2291,224.34,224.32,4.98521457]
[1734442997222,2.229,224.35,224.31,6.14994267]
[1734442997417,2.229,224.35,224.32,4.98526713]
[1734442997626,12.86338919,224.42,224.31,6.14994267]
[1734442997825,2.2288,224.37,224.32,7.21445476]
[1734442998025,2.2288,224.37,224.33,4.98525419]
[1734442998325,2.2286,224.39,224.34,13.36419632]
[1734442998627,2.2286,224.39,224.35,4.98525365]
[1734442998833,2.2286,224.39,224.34,10.73894267]
[1734442999026,2.2286,224.39,224.35,4.98502486]
[1734442999228,2.2286,224.39,224.36,4.98502486]
[1734442999524,2.2286,224.39,224.35,6.14994267]
[1734442999729,2.2284,224.41,224.36,4.98533473]
[1734442999925,5.32310132,224.46,224.35,6.14994267]
[1734443000126,5.32310132,224.46,224.36,4.98533435]
[1734443000326,2.2287,224.38,224.35,6.14994267]
[1734443000527,10.50338919,224.44,224.34,8.50994267]
[1734443000832,10.50338919,224.44,224.35,4.98565959]
[1734443001027,10.50338919,224.44,224.36,4.98563567]
[1734443001225,10.50338919,224.44,224.35,6.14994267]
[1734443001427,10.50338919,224.44,224.36,4.98599896]
[1734443001622,10.50338919,224.44,224.35,6.14994267]
[1734443001926,10.50338919,224.44,224.33,6.14994267]
[1734443002229,2.2288,224.37,224.34,11.13620172]
[1734443002536,10.50338919,224.44,224.33,6.14994267]
[1734443002727,2.2287,224.38,224.34,4.9867956]
[1734443002922,2.2287,224.38,224.35,4.9867956]
[1734443003231,2.2287,224.38,224.33,8.37904267]